[Event "Chestnut 2nd Category Final 2025"]
[Site "Kyiv"]
[Date "2025.04.06"]
[Round "3.3"]
[White "Lymar, Makar"]
[Black "Diachuk, Ihor"]
[Result "0-1"]
[Annotator "NA"]
[ECO "D31"]
[WhiteElo "1565"]
[BlackElo "1550"]
[PlyCount "128"]
[EventDate "2025.04.03"]
[EventCountry "UKR"]
[SourceTitle "playchess.com"]
[Source "ChessBase"]
[SourceQuality "1"]
[TimeControl "600+5"]

1. d4 {[%emt 0:00:00]} d5 {[%emt 0:00:03]} 2. c4 e6 {[%emt 0:00:04]} 3. Nc3 {[%emt 0:00:03]} Bb4 {[%emt 0:00:04]} 4. a3 {[%emt 0:00:01]} Bxc3+ {[%emt 0:00:03]} 5. bxc3 {[%emt 0:00:02]} Nf6 {[%emt 0:00:05]} 6. Nf3 {[%emt 0:00:02]} h6 {[%emt 0:00:02]} 7. Bf4 {[%emt 0:00:02]} Nc6 {[%emt 0:00:04]} 8. e3 {[%emt 0:00:02]} Bd7 {[%emt 0:00:03]} 9. Bd3 {[%emt 0:00:03]} O-O {[%emt 0:00:04]} 10. O-O {[%emt 0:00:03]} Nh5 {[%emt 0:00:34]} 11. Bb1 {[%emt 0:00:59]} Nxf4 {[%emt 0:00:05]} 12. exf4 {[%emt 0:00:03]} Qf6 {[%emt 0:00:07]} 13. Qd3 {[%emt 0:00:17]} g6 {[%emt 0:00:12]} 14. Ne5 {[%emt 0:00:20]} Nxe5 {[%emt 0:00:06]} 15. fxe5 {[%emt 0:00:02]} Qe7 {[%emt 0:00:09]} 16. c5 {[%emt 0:00:24]} Qe8 {[%emt 0:00:08]} 17. Re1 {[%emt 0:00:31]} Kg7 {[%emt 0:00:24]} 18. h4 {[%emt 0:00:19]} h5 {[%emt 0:00:15]} 19. Re3 {[%emt 0:00:30]} Qe7 {[%emt 0:00:07]} 20. Rh3 {[%emt 0:00:31]} a6 {[%emt 0:00:06]} 21. Qf3 {[%emt 0:00:34]} Bb5 {[%emt 0:00:08]} 22. Qf4 {[%emt 0:00:31]} Bc4 {[%emt 0:00:08]} 23. Rg3 {[%emt 0:00:24]} c6 {[%emt 0:00:31]} 24. Rg5 {[%emt 0:00:28]} Rh8 {[%emt 0:00:08]} 25. Qd2 {[%emt 0:00:46]} Rab8 {[%emt 0:00:30]} 26. f4 {[%emt 0:00:12]} Kf8 {[%emt 0:00:53]} 27. Qf2 {[%emt 0:00:46]} Ke8 {[%emt 0:00:35]} 28. Bc2 {[%emt 0:00:25]} Kd7 {[%emt 0:00:14]} 29. a4 {[%emt 0:00:20]} Rhf8 {[%emt 0:00:26]} 30. a5 {[%emt 0:00:16]} Qd8 {[%emt 0:00:24]} 31. Qe1 {[%emt 0:00:38]} Kc8 {[%emt 0:00:08]} 32. Qb1 {[%emt 0:00:08]} Qc7 {[%emt 0:00:14]} 33. Qb4 {[%emt 0:00:19]} Bb5 {[%emt 0:00:28]} 34. Ba4 {[%emt 0:00:14]} Bxa4 {[%emt 0:00:02]} 35. Qxa4 {[%emt 0:00:02]} Kd7 {[%emt 0:00:29]} 36. c4 {[%emt 0:00:03]} Kc8 {[%emt 0:00:08]} 37. cxd5 {[%emt 0:00:13]} exd5 {[%emt 0:00:02]} 38. Re1 {[%emt 0:00:23]} Re8 {[%emt 0:00:15]} 39. f5 {[%emt 0:00:24]} Qe7 {[%emt 0:00:07]} 40. g3 {[%emt 0:00:23]} Rg8 {[%emt 0:00:38]} 41. e6 {[%emt 0:00:20]} fxe6 {[%emt 0:00:13]} 42. Rxe6 {[%emt 0:00:06]} Qf7 {[%emt 0:00:03]} 43. Qc2 {[%emt 0:00:46]} gxf5 {[%emt 0:00:48]} 44. Rxg8+ {[%emt 0:00:19]} Qxg8 {[%emt 0:00:04]} 45. Kg2 {[%emt 0:00:16]} Qxe6 {[%emt 0:00:05]} 46. Qd1 {[%emt 0:00:04]} Qg6 {[%emt 0:00:03]} 47. Qf3 {[%emt 0:00:02]} Kd7 {[%emt 0:00:03]} 48. Qf4 {[%emt 0:00:02]} Re8 {[%emt 0:00:03]} 49. Kf3 {[%emt 0:00:08]} Qg4+ {[%emt 0:00:05]} 50. Qxg4 {[%emt 0:00:06]} fxg4+ {[%emt 0:00:04]} 51. Kf4 Re4+ {[%emt 0:00:06]} 52. Kg5 {[%emt 0:00:02]} Rxd4 {[%emt 0:00:06]} 53. Kxh5 {[%emt 0:00:01]} Re4 {[%emt 0:00:02]} 54. Kg6 {[%emt 0:00:06]} Ke7 {[%emt 0:00:01]} 55. h5 Re6+ {[%emt 0:00:02]} 56. Kf5 {[%emt 0:00:11]} Rh6 {[%emt 0:00:04]} 57. Kxg4 {[%emt 0:00:02]} Kf6 {[%emt 0:00:01]} 58. Kh4 {[%emt 0:00:04]} d4 {[%emt 0:00:03]} 59. g4 {[%emt 0:00:01]} Kg7 {[%emt 0:00:07]} 60. Kg3 {[%emt 0:00:07]} Kf6 {[%emt 0:00:05]} 61. Kf4 {[%emt 0:00:04]} Kg7 {[%emt 0:00:05]} 62. Ke4 {[%emt 0:00:13]} Kf6 {[%emt 0:00:04]} 63. Kf4 {[%emt 0:00:05]} d3 {[%emt 0:00:26]} 64. g5+ {[%emt 0:00:05]} Kf7 {[%emt 0:00:05]} 0-1

[Event "Chestnut 2nd Category Final 2025"]
[Site "Kyiv"]
[Date "2025.04.06"]
[Round "3.4"]
[White "Atamanchuk, Dmytro"]
[Black "Fabrykator, Myroslava"]
[Result "1/2-1/2"]
[Annotator "NA"]
[ECO "D38"]
[WhiteElo "1493"]
[BlackElo "1457"]
[PlyCount "76"]
[EventDate "2025.04.03"]
[EventCountry "UKR"]
[SourceTitle "playchess.com"]
[Source "ChessBase"]
[SourceQuality "1"]
[TimeControl "600+5"]

1. d4 {[%emt 0:00:02]} Nf6 {[%emt 0:00:04]} 2. c4 {[%emt 0:00:02]} e6 {[%emt 0:00:01]} 3. Nf3 {[%emt 0:00:05]} d5 {[%emt 0:00:01]} 4. Nc3 {[%emt 0:00:03]} Bb4 {[%emt 0:00:02]} 5. Bg5 {[%emt 0:00:08]} h6 {[%emt 0:00:09]} 6. Bh4 {[%emt 0:00:02]} O-O {[%emt 0:00:07]} 7. e3 {[%emt 0:00:01]} b6 {[%emt 0:00:23]} 8. cxd5 exd5 {[%emt 0:00:05]} 9. Bd3 {[%emt 0:00:13]} Bb7 {[%emt 0:00:10]} 10. Qb3 {[%emt 0:00:07]} Bxc3+ {[%emt 0:00:12]} 11. Qxc3 {[%emt 0:00:07]} Nbd7 {[%emt 0:00:36]} 12. b4 {[%emt 0:00:46]} Rc8 {[%emt 0:00:28]} 13. Rc1 {[%emt 0:00:38]} c5 {[%emt 0:01:03]} 14. bxc5 {[%emt 0:00:23]} bxc5 {[%emt 0:00:06]} 15. dxc5 {[%emt 0:00:47]} Rxc5 {[%emt 0:00:32]} 16. Qb2 {[%emt 0:00:15]} Rxc1+ {[%emt 0:00:23]} 17. Qxc1 {[%emt 0:00:04]} Qa5+ {[%emt 0:00:21]} 18. Qd2 {[%emt 0:00:10]} Qxd2+ {[%emt 0:00:18]} 19. Kxd2 {[%emt 0:00:26]} Rc8 {[%emt 0:00:57]} 20. Rc1 {[%emt 0:00:28]} Rxc1 21. Kxc1 {[%emt 0:00:03]} Nc5 {[%emt 0:00:31]} 22. Bb1 {[%emt 0:00:28]} g5 {[%emt 0:00:31]} 23. Bg3 {[%emt 0:00:03]} Nfe4 {[%emt 0:00:07]} 24. Ne1 {[%emt 0:00:54]} Nxg3 {[%emt 0:00:14]} 25. hxg3 {[%emt 0:00:02]} Kg7 {[%emt 0:00:12]} 26. f3 {[%emt 0:00:27]} Ne6 {[%emt 0:00:26]} 27. Nc2 {[%emt 0:00:58]} f5 {[%emt 0:00:34]} 28. Kd2 {[%emt 0:01:19]} f4 {[%emt 0:00:13]} 29. gxf4 {[%emt 0:00:36]} gxf4 {[%emt 0:00:06]} 30. Ke2 {[%emt 0:00:33]} Kf6 {[%emt 0:00:35]} 31. Kf2 {[%emt 0:00:24]} Ke5 {[%emt 0:00:19]} 32. Nb4 {[%emt 0:00:21]} fxe3+ {[%emt 0:00:20]} 33. Kxe3 {[%emt 0:00:06]} d4+ {[%emt 0:00:09]} 34. Kf2 {[%emt 0:00:05]} Nc5 {[%emt 0:00:34]} 35. Nd3+ {[%emt 0:00:07]} Nxd3+ {[%emt 0:00:15]} 36. Bxd3 {[%emt 0:00:01]} Bd5 {[%emt 0:00:09]} 37. a3 {[%emt 0:00:07]} a5 {[%emt 0:00:17]} 38. g3 {[%emt 0:00:05]} Bc6 {[%emt 0:00:24]} 1/2-1/2

[Event "Chestnut 2nd Category Final 2025"]
[Site "Kyiv"]
[Date "2025.04.06"]
[Round "3.5"]
[White "Voloshyn, Maksym"]
[Black "Ruzhanskyi, Kiril"]
[Result "1-0"]
[Annotator "NA"]
[ECO "A01"]
[WhiteElo "1621"]
[BlackElo "1534"]
[PlyCount "143"]
[EventDate "2025.04.03"]
[EventCountry "UKR"]
[SourceTitle "playchess.com"]
[Source "ChessBase"]
[SourceQuality "1"]
[TimeControl "600+5"]

1. b3 {[%emt 0:00:03]} Nf6 {[%emt 0:00:02]} 2. Bb2 {[%emt 0:00:01]} g6 {[%emt 0:00:01]} 3. g3 {[%emt 0:00:02]} Bg7 {[%emt 0:00:01]} 4. Bg2 {[%emt 0:00:01]} d5 {[%emt 0:00:01]} 5. d3 {[%emt 0:00:10]} c6 {[%emt 0:00:01]} 6. Nf3 {[%emt 0:00:04]} Bg4 {[%emt 0:00:02]} 7. Nbd2 {[%emt 0:00:02]} Nbd7 {[%emt 0:00:01]} 8. c4 {[%emt 0:00:02]} e6 {[%emt 0:00:15]} 9. h3 {[%emt 0:00:06]} Bxf3 {[%emt 0:00:01]} 10. Nxf3 {[%emt 0:00:02]} Qa5+ {[%emt 0:00:04]} 11. Qd2 {[%emt 0:00:07]} Qxd2+ {[%emt 0:00:05]} 12. Nxd2 {[%emt 0:00:02]} O-O {[%emt 0:00:02]} 13. O-O {[%emt 0:00:11]} Rac8 {[%emt 0:00:04]} 14. Rac1 {[%emt 0:00:02]} Rfd8 {[%emt 0:00:04]} 15. Nf3 {[%emt 0:00:04]} dxc4 {[%emt 0:00:03]} 16. dxc4 {[%emt 0:00:02]} Nc5 {[%emt 0:00:21]} 17. Rfd1 {[%emt 0:00:10]} Nce4 {[%emt 0:00:14]} 18. Nh4 {[%emt 0:00:37]} b6 {[%emt 0:00:16]} 19. Bxe4 {[%emt 0:00:14]} Nxe4 {[%emt 0:00:02]} 20. Bxg7 {[%emt 0:00:03]} Kxg7 {[%emt 0:00:03]} 21. Nf3 {[%emt 0:00:14]} Rxd1+ {[%emt 0:00:03]} 22. Rxd1 {[%emt 0:00:08]} Nc3 {[%emt 0:00:05]} 23. Rd2 {[%emt 0:00:27]} Ne4 {[%emt 0:00:19]} 24. Rd7 {[%emt 0:00:08]} Nc3 {[%emt 0:00:16]} 25. Ne5 {[%emt 0:00:08]} Rf8 {[%emt 0:00:16]} 26. Nxc6 {[%emt 0:00:07]} Nxa2 {[%emt 0:00:02]} 27. Nd4 {[%emt 0:00:06]} Kf6 {[%emt 0:00:25]} 28. Rxa7 {[%emt 0:00:03]} Nb4 {[%emt 0:00:02]} 29. Rb7 {[%emt 0:00:13]} e5 {[%emt 0:00:08]} 30. Rxb6+ {[%emt 0:00:03]} Kg7 {[%emt 0:00:02]} 31. Nf5+ {[%emt 0:00:20]} gxf5 {[%emt 0:00:03]} 32. Rxb4 {[%emt 0:00:02]} Rd8 {[%emt 0:00:05]} 33. c5 {[%emt 0:00:02]} Rc8 {[%emt 0:00:01]} 34. Rc4 {[%emt 0:00:01]} Kf6 {[%emt 0:00:02]} 35. b4 {[%emt 0:00:01]} Ke6 {[%emt 0:00:01]} 36. Kg2 {[%emt 0:00:03]} Kd5 {[%emt 0:00:01]} 37. Rc1 {[%emt 0:00:03]} Rb8 {[%emt 0:00:00]} 38. c6 {[%emt 0:00:06]} Rc8 {[%emt 0:00:13]} 39. b5 {[%emt 0:00:02]} Kd6 {[%emt 0:00:01]} 40. Kf3 {[%emt 0:00:02]} f6 {[%emt 0:00:02]} 41. g4 {[%emt 0:00:02]} e4+ {[%emt 0:00:02]} 42. Kf4 {[%emt 0:00:02]} fxg4 {[%emt 0:00:08]} 43. hxg4 {[%emt 0:00:02]} Kd5 {[%emt 0:00:02]} 44. c7 {[%emt 0:00:05]} Kd6 {[%emt 0:00:07]} 45. b6 {[%emt 0:00:01]} Kd7 {[%emt 0:00:13]} 46. b7 {[%emt 0:00:06]} Rxc7 {[%emt 0:00:01]} 47. b8=Q {[%emt 0:00:04]} Rxc1 {[%emt 0:00:02]} 48. Qb5+ {[%emt 0:00:03]} Ke7 {[%emt 0:00:03]} 49. Qb4+ {[%emt 0:00:04]} Kf7 {[%emt 0:00:02]} 50. Qxe4 {[%emt 0:00:04]} Rf1 {[%emt 0:00:02]} 51. Qxh7+ {[%emt 0:00:03]} Ke6 {[%emt 0:00:01]} 52. f3 {[%emt 0:00:01]} Ra1 {[%emt 0:00:04]} 53. Qe4+ {[%emt 0:00:09]} Kf7 {[%emt 0:00:01]} 54. g5 {[%emt 0:00:01]} fxg5+ {[%emt 0:00:02]} 55. Kxg5 {[%emt 0:00:02]} Ra5+ {[%emt 0:00:01]} 56. Qf5+ {[%emt 0:00:03]} Rxf5+ {[%emt 0:00:03]} 57. Kxf5 {[%emt 0:00:02]} Ke7 {[%emt 0:00:00]} 58. e4 {[%emt 0:00:02]} Kf7 {[%emt 0:00:01]} 59. f4 {[%emt 0:00:01]} Ke7 {[%emt 0:00:01]} 60. Kg6 {[%emt 0:00:02]} Kf8 {[%emt 0:00:01]} 61. Kf6 {[%emt 0:00:01]} Ke8 {[%emt 0:00:00]} 62. Kg7 {[%emt 0:00:01]} Ke7 {[%emt 0:00:01]} 63. f5 {[%emt 0:00:01]} Kd6 {[%emt 0:00:01]} 64. f6 {[%emt 0:00:02]} Kd7 {[%emt 0:00:01]} 65. f7 {[%emt 0:00:01]} Ke6 66. f8=Q {[%emt 0:00:04]} Ke5 {[%emt 0:00:01]} 67. Qf5+ {[%emt 0:00:03]} Kd6 {[%emt 0:00:01]} 68. Qd5+ {[%emt 0:00:01]} Ke7 {[%emt 0:00:02]} 69. Kg6 {[%emt 0:00:07]} Ke8 {[%emt 0:00:02]} 70. Qb7 {[%emt 0:00:04]} Kd8 {[%emt 0:00:01]} 71. Kf6 {[%emt 0:00:02]} Ke8 {[%emt 0:00:01]} 72. Qc8# {[%emt 0:00:01]} 1-0

[Event "Chestnut 2nd Category Final 2025"]
[Site "Kyiv"]
[Date "2025.04.06"]
[Round "4.1"]
[White "Kravchuk, Sviatoslav"]
[Black "Ruzhanskyi, Kiril"]
[Result "0-1"]
[Annotator "NA"]
[ECO "B06"]
[WhiteElo "1441"]
[BlackElo "1534"]
[PlyCount "76"]
[EventDate "2025.04.03"]
[EventCountry "UKR"]
[SourceTitle "playchess.com"]
[Source "ChessBase"]
[SourceQuality "1"]
[TimeControl "600+5"]

1. e4 {[%emt 0:00:02]} g6 {[%emt 0:00:06]} 2. d4 {[%emt 0:00:02]} c6 {[%emt 0:00:01]} 3. Nc3 {[%emt 0:00:04]} d5 {[%emt 0:00:01]} 4. exd5 {[%emt 0:00:04]} cxd5 {[%emt 0:00:01]} 5. Nf3 {[%emt 0:00:03]} Bg4 {[%emt 0:00:01]} 6. h3 {[%emt 0:00:03]} Bxf3 {[%emt 0:00:02]} 7. Qxf3 {[%emt 0:00:03]} e6 {[%emt 0:00:01]} 8. Bf4 {[%emt 0:00:09]} Nc6 {[%emt 0:00:03]} 9. Bb5 {[%emt 0:00:06]} Bg7 {[%emt 0:00:03]} 10. Rd1 {[%emt 0:00:12]} Nge7 {[%emt 0:00:03]} 11. Be3 {[%emt 0:00:20]} O-O {[%emt 0:00:04]} 12. O-O {[%emt 0:00:03]} a6 {[%emt 0:00:02]} 13. Bxc6 {[%emt 0:00:04]} Nxc6 {[%emt 0:00:04]} 14. a3 {[%emt 0:00:08]} Qb6 {[%emt 0:00:06]} 15. Na4 {[%emt 0:00:28]} Qb5 {[%emt 0:00:06]} 16. b3 {[%emt 0:00:08]} Rac8 {[%emt 0:00:10]} 17. Rfe1 {[%emt 0:00:36]} Na5 {[%emt 0:00:41]} 18. Qe2 {[%emt 0:00:46]} Qc6 {[%emt 0:00:16]} 19. Rd2 {[%emt 0:00:28]} Rfe8 {[%emt 0:00:34]} 20. Qd3 {[%emt 0:00:52]} Bf8 {[%emt 0:00:13]} 21. Ra1 {[%emt 0:00:31]} b5 {[%emt 0:00:50]} 22. Nc5 {[%emt 0:00:18]} Nb7 {[%emt 0:00:15]} 23. Nxb7 {[%emt 0:00:12]} Qxb7 {[%emt 0:00:02]} 24. Qe2 {[%emt 0:00:22]} Rc3 {[%emt 0:00:09]} 25. Rd3 {[%emt 0:00:33]} Rec8 {[%emt 0:00:11]} 26. Rxc3 {[%emt 0:00:20]} Rxc3 {[%emt 0:00:02]} 27. Qd2 {[%emt 0:00:02]} Qc6 {[%emt 0:00:15]} 28. Ra2 {[%emt 0:00:19]} a5 {[%emt 0:01:57]} 29. f3 {[%emt 0:00:32]} a4 {[%emt 0:00:01]} 30. bxa4 {[%emt 0:00:28]} bxa4 {[%emt 0:00:01]} 31. Qc1 {[%emt 0:00:38]} Qc4 {[%emt 0:00:13]} 32. Qd2 {[%emt 0:00:49]} Rxe3 {[%emt 0:00:23]} 33. Rb2 {[%emt 0:00:29]} Rxa3 {[%emt 0:00:02]} 34. Rb8 {[%emt 0:00:10]} Ra1+ {[%emt 0:00:02]} 35. Kf2 {[%emt 0:00:22]} a3 {[%emt 0:00:13]} 36. Qh6 {[%emt 0:00:25]} Qxd4+ {[%emt 0:00:11]} 37. Ke2 {[%emt 0:00:21]} Qd1+ {[%emt 0:00:03]} 38. Kf2 {[%emt 0:00:18]} Qe1# {[%emt 0:00:02]} 0-1

[Event "Chestnut 2nd Category Final 2025"]
[Site "Kyiv"]
[Date "2025.04.06"]
[Round "4.2"]
[White "Chornyi, Viktor"]
[Black "Prykhodko, Artem"]
[Result "0-1"]
[Annotator "NA"]
[ECO "C78"]
[WhiteElo "1515"]
[BlackElo "1678"]
[PlyCount "113"]
[EventDate "2025.04.03"]
[EventCountry "UKR"]
[SourceTitle "playchess.com"]
[Source "ChessBase"]
[SourceQuality "1"]
[TimeControl "600+5"]

1. e4 {[%emt 0:00:01]} e5 {[%emt 0:00:01]} 2. Nf3 {[%emt 0:00:02]} Nc6 {[%emt 0:00:02]} 3. Bb5 {[%emt 0:00:02]} a6 {[%emt 0:00:01]} 4. Ba4 {[%emt 0:00:01]} b5 {[%emt 0:00:01]} 5. Bb3 {[%emt 0:00:01]} Nf6 {[%emt 0:00:04]} 6. O-O {[%emt 0:00:03]} Bb7 {[%emt 0:00:01]} 7. Nc3 {[%emt 0:00:05]} d6 {[%emt 0:00:01]} 8. d3 {[%emt 0:00:02]} Be7 {[%emt 0:00:02]} 9. Bg5 {[%emt 0:00:04]} O-O {[%emt 0:00:22]} 10. a3 {[%emt 0:00:15]} Nb8 {[%emt 0:00:07]} 11. Qd2 {[%emt 0:00:03]} Nbd7 {[%emt 0:00:04]} 12. h3 {[%emt 0:00:27]} Nc5 {[%emt 0:00:06]} 13. Ba2 {[%emt 0:00:03]} h6 {[%emt 0:00:21]} 14. Be3 {[%emt 0:00:10]} Ne6 {[%emt 0:00:07]} 15. Rad1 {[%emt 0:00:29]} Qd7 {[%emt 0:00:44]} 16. Rfe1 {[%emt 0:00:11]} c5 {[%emt 0:00:13]} 17. b3 {[%emt 0:00:50]} Nd4 18. Nh2 {[%emt 0:00:56]} a5 {[%emt 0:00:14]} 19. Ne2 {[%emt 0:00:08]} b4 {[%emt 0:00:18]} 20. a4 {[%emt 0:00:18]} Rac8 {[%emt 0:00:30]} 21. Rc1 {[%emt 0:00:26]} Bxe4 {[%emt 0:00:30]} 22. dxe4 {[%emt 0:00:08]} Nxe4 {[%emt 0:00:04]} 23. Qd3 {[%emt 0:00:11]} Nxe2+ {[%emt 0:00:03]} 24. Rxe2 {[%emt 0:00:41]} Nc3 {[%emt 0:00:02]} 25. Bb1 {[%emt 0:00:35]} Nxe2+ {[%emt 0:00:21]} 26. Qxe2 {[%emt 0:00:02]} Qe6 {[%emt 0:00:34]} 27. Qd3 {[%emt 0:00:40]} f5 {[%emt 0:00:24]} 28. Rd1 {[%emt 0:00:31]} Kh8 {[%emt 0:01:02]} 29. Qd5 {[%emt 0:00:11]} Qf6 {[%emt 0:00:11]} 30. Qd3 {[%emt 0:00:33]} e4 {[%emt 0:00:15]} 31. Qd2 {[%emt 0:00:22]} f4 {[%emt 0:00:02]} 32. Ng4 {[%emt 0:00:12]} Qg5 {[%emt 0:00:57]} 33. g3 {[%emt 0:00:15]} fxe3 {[%emt 0:00:06]} 34. Qxe3 {[%emt 0:00:19]} Qxe3 {[%emt 0:00:05]} 35. Nxe3 {[%emt 0:00:09]} Bg5 {[%emt 0:00:46]} 36. Nc4 {[%emt 0:00:13]} Ra8 {[%emt 0:00:30]} 37. Rxd6 {[%emt 0:00:17]} Rfd8 {[%emt 0:00:04]} 38. Kg2 {[%emt 0:00:43]} Rxd6 {[%emt 0:00:18]} 39. Nxd6 {[%emt 0:00:03]} Kg8 {[%emt 0:00:02]} 40. Nxe4 {[%emt 0:00:36]} Re8 {[%emt 0:00:27]} 41. f3 {[%emt 0:00:04]} Rd8 {[%emt 0:00:21]} 42. c4 {[%emt 0:00:42]} bxc3 {[%emt 0:00:21]} 43. Nxc3 {[%emt 0:00:10]} Rd2+ {[%emt 0:00:06]} 44. Kf1 {[%emt 0:00:17]} Rb2 {[%emt 0:00:09]} 45. Bd3 {[%emt 0:00:23]} Kf8 {[%emt 0:00:38]} 46. Bc4 {[%emt 0:00:03]} Be3 {[%emt 0:00:34]} 47. Nd1 {[%emt 0:00:13]} Rb1 {[%emt 0:00:04]} 48. Ke2 {[%emt 0:00:02]} Bg5 {[%emt 0:00:09]} 49. h4 {[%emt 0:00:09]} Bf6 {[%emt 0:00:05]} 50. h5 {[%emt 0:00:07]} Ke7 {[%emt 0:00:05]} 51. g4 {[%emt 0:00:01]} Bg5 {[%emt 0:00:08]} 52. Bd5 {[%emt 0:00:18]} Rc1 {[%emt 0:00:18]} 53. Be4 {[%emt 0:00:15]} c4 {[%emt 0:00:37]} 54. Bd5 {[%emt 0:00:21]} Rc2+ {[%emt 0:00:07]} 55. Ke1 {[%emt 0:00:02]} Bd2+ {[%emt 0:00:23]} 56. Kf1 {[%emt 0:00:14]} c3 {[%emt 0:00:15]} 57. Be4 0-1

[Event "Chestnut 2nd Category Final 2025"]
[Site "Kyiv"]
[Date "2025.04.06"]
[Round "4.3"]
[White "Fabrykator, Myroslava"]
[Black "Kulak, Volodymyr"]
[Result "0-1"]
[Annotator "NA"]
[ECO "C77"]
[WhiteElo "1457"]
[BlackElo "1607"]
[PlyCount "134"]
[EventDate "2025.04.03"]
[EventCountry "UKR"]
[SourceTitle "playchess.com"]
[Source "ChessBase"]
[SourceQuality "1"]
[TimeControl "600+5"]

1. e4 {[%emt 0:00:02]} e5 {[%emt 0:00:01]} 2. Nf3 {[%emt 0:00:01]} Nc6 {[%emt 0:00:01]} 3. Bb5 {[%emt 0:00:01]} a6 {[%emt 0:00:04]} 4. Ba4 {[%emt 0:00:02]} Nf6 {[%emt 0:00:02]} 5. Nc3 {[%emt 0:00:02]} b5 {[%emt 0:00:44]} 6. Bb3 {[%emt 0:00:02]} Bc5 {[%emt 0:00:13]} 7. d3 {[%emt 0:00:20]} d6 {[%emt 0:00:14]} 8. h3 {[%emt 0:00:05]} h6 {[%emt 0:00:03]} 9. O-O {[%emt 0:00:02]} O-O {[%emt 0:00:13]} 10. a4 {[%emt 0:00:22]} b4 {[%emt 0:00:07]} 11. Nd5 {[%emt 0:00:04]} a5 {[%emt 0:00:40]} 12. Be3 {[%emt 0:00:32]} Ba7 {[%emt 0:00:49]} 13. Re1 {[%emt 0:01:06]} Be6 {[%emt 0:00:16]} 14. Nxf6+ {[%emt 0:00:52]} Qxf6 {[%emt 0:00:09]} 15. Bxe6 {[%emt 0:00:24]} Qxe6 {[%emt 0:00:37]} 16. d4 {[%emt 0:00:25]} exd4 {[%emt 0:00:20]} 17. Nxd4 {[%emt 0:00:03]} Nxd4 {[%emt 0:00:07]} 18. Bxd4 {[%emt 0:00:04]} Bxd4 {[%emt 0:00:04]} 19. Qxd4 {[%emt 0:00:04]} Qe5 {[%emt 0:00:27]} 20. Qxe5 {[%emt 0:00:19]} dxe5 {[%emt 0:00:01]} 21. Rad1 {[%emt 0:00:04]} Rfd8 {[%emt 0:00:04]} 22. Kf1 {[%emt 0:00:17]} Kf8 {[%emt 0:00:03]} 23. Ke2 {[%emt 0:00:08]} Ke7 {[%emt 0:00:03]} 24. Ke3 {[%emt 0:00:17]} f6 {[%emt 0:00:03]} 25. f3 {[%emt 0:00:02]} Ke6 {[%emt 0:00:06]} 26. b3 {[%emt 0:00:44]} Rd6 {[%emt 0:00:40]} 27. Rd3 {[%emt 0:00:19]} Raa6 {[%emt 0:00:31]} 28. Red1 {[%emt 0:00:10]} Rac6 {[%emt 0:00:03]} 29. Rxd6+ {[%emt 0:00:13]} cxd6 {[%emt 0:00:10]} 30. Rd2 {[%emt 0:00:15]} Rc3+ {[%emt 0:00:08]} 31. Ke2 {[%emt 0:00:06]} Rc5 {[%emt 0:00:07]} 32. Ke3 {[%emt 0:00:03]} g6 {[%emt 0:00:28]} 33. g3 {[%emt 0:00:09]} f5 {[%emt 0:00:09]} 34. h4 {[%emt 0:00:46]} fxe4 {[%emt 0:00:20]} 35. Kxe4 {[%emt 0:00:22]} d5+ {[%emt 0:00:21]} 36. Ke3 {[%emt 0:00:06]} Rc3+ {[%emt 0:00:07]} 37. Ke2 {[%emt 0:00:09]} d4 {[%emt 0:00:13]} 38. g4 {[%emt 0:00:23]} Kd5 {[%emt 0:00:11]} 39. g5 {[%emt 0:00:33]} h5 {[%emt 0:00:14]} 40. Kf2 {[%emt 0:00:15]} e4 {[%emt 0:00:25]} 41. fxe4+ {[%emt 0:00:08]} Kxe4 {[%emt 0:00:03]} 42. Re2+ {[%emt 0:00:23]} Kd5 {[%emt 0:00:47]} 43. Rd2 {[%emt 0:00:15]} Rh3 {[%emt 0:00:04]} 44. Rd3 {[%emt 0:01:26]} Rxh4 {[%emt 0:00:04]} 45. Rf3 {[%emt 0:00:19]} Rg4 {[%emt 0:00:17]} 46. Rf8 {[%emt 0:00:15]} Rxg5 {[%emt 0:00:06]} 47. Ra8 {[%emt 0:00:04]} Ke4 48. Re8+ {[%emt 0:00:02]} Kf4 {[%emt 0:00:16]} 49. Rd8 {[%emt 0:00:13]} Ke4 {[%emt 0:00:22]} 50. Re8+ {[%emt 0:00:06]} Re5 {[%emt 0:00:02]} 51. Rg8 {[%emt 0:00:11]} g5 {[%emt 0:00:01]} 52. Rh8 {[%emt 0:00:18]} g4 {[%emt 0:00:16]} 53. Kg3 {[%emt 0:00:11]} d3 {[%emt 0:00:02]} 54. cxd3+ {[%emt 0:00:12]} Kxd3 {[%emt 0:00:05]} 55. Rd8+ {[%emt 0:00:04]} Kc3 {[%emt 0:00:02]} 56. Kh4 {[%emt 0:00:11]} Kxb3 {[%emt 0:00:04]} 57. Rd2 {[%emt 0:00:03]} Kxa4 {[%emt 0:00:04]} 58. Ra2+ {[%emt 0:00:02]} Kb5 {[%emt 0:00:01]} 59. Rb2 {[%emt 0:00:03]} a4 {[%emt 0:00:01]} 60. Rd2 {[%emt 0:00:02]} a3 {[%emt 0:00:01]} 61. Ra2 {[%emt 0:00:01]} Ka4 {[%emt 0:00:01]} 62. Rd2 {[%emt 0:00:02]} b3 {[%emt 0:00:04]} 63. Rd4+ {[%emt 0:00:01]} Kb5 {[%emt 0:00:01]} 64. Rd3 {[%emt 0:00:03]} Kb4 {[%emt 0:00:02]} 65. Rd4+ {[%emt 0:00:02]} Kc3 {[%emt 0:00:01]} 66. Rd8 {[%emt 0:00:05]} a2 {[%emt 0:00:01]} 67. Rc8+ {[%emt 0:00:02]} Kb2 {[%emt 0:00:02]} 0-1